[Event "AUT-ch Open 2020"]
[Site "Graz"]
[Date "2020.02.19"]
[Round "7.10"]
[White "Klings, Peter"]
[Black "Rathnakaran, K.."]
[Result "1-0"]
[ECO "A42"]
[WhiteElo "2154"]
[BlackElo "2334"]
[Annotator "NA"]
[PlyCount "75"]
[EventDate "2020.02.14"]
[EventType "swiss"]
[EventCountry "AUT"]
[SourceTitle "playchess.com"]
[Source "ChessBase"]
[SourceQuality "1"]
[TimeControl "40/5400+30:1800+30"]

1. Nf3 {[%emt 0:00:00]} g6 {[%emt 0:00:00]} 2. d4 {[%emt 0:00:00]} Bg7 {[%emt 1:31:00]} 3. c4 {[%emt 0:01:16]} d6 {[%emt 0:00:00]} 4. Nc3 {[%emt 0:00:16]} Nd7 {[%emt 0:00:00]} 5. e4 {[%emt 0:00:16]} e5 {[%emt 0:00:00]} 6. Be2 {[%emt 0:00:22]} Ne7 {[%emt 0:00:00]} 7. h4 {[%emt 0:03:06]} h6 {[%emt 0:00:00]} 8. h5 {[%emt 0:04:06]} g5 {[%emt 0:00:00]} 9. d5 {[%emt 0:00:07]} f5 {[%emt 0:00:00]} 10. Nd2 {[%emt 0:05:46]} Nf6 {[%emt 0:00:00]} 11. f3 {[%emt 0:01:20]} f4 {[%emt 0:00:00]} 12. b4 {[%emt 0:00:47]} O-O {[%emt 0:00:00]} 13. c5 {[%emt 0:00:19]} c6 {[%emt 0:00:00]} 14. cxd6 {[%emt 0:05:49]} Nexd5 {[%emt 0:00:00]} 15. exd5 {[%emt 0:00:59]} cxd5 {[%emt 0:00:00]} 16. Qb3 {[%emt 0:08:12]} Kh8 {[%emt 0:00:00]} 17. b5 {[%emt 0:10:40]} e4 {[%emt 0:00:00]} 18. Qb4 {[%emt 0:08:27]} exf3 {[%emt 0:00:00]} 19. Nxf3 {[%emt 0:01:36]} Qe8 {[%emt 0:00:00]} 20. Bb2 {[%emt 0:09:19]} g4 {[%emt 0:00:00]} 21. Nh4 {[%emt 0:04:57]} Qe3 {[%emt 0:00:00]} 22. Ng6+ {[%emt 0:02:58]} Kg8 {[%emt 0:00:00]} 23. Qxf4 {[%emt 0:01:18]} Qxf4 {[%emt 0:00:00]} 24. Nxf4 {[%emt 0:01:11]} Ne4 {[%emt 0:00:00]} 25. Nfxd5 {[%emt 0:00:58]} Ng3 {[%emt 0:00:00]} 26. Ne7+ {[%emt 0:02:29]} Kf7 {[%emt 0:00:00]} 27. O-O-O {[%emt 0:12:53]} Nxh1 {[%emt 0:00:00]} 28. Bc4+ {[%emt 0:03:06]} Be6 {[%emt 0:00:00]} 29. Rf1+ {[%emt 0:00:55]} Ke8 {[%emt 0:00:00]} 30. Rxf8+ {[%emt 0:00:07]} Bxf8 {[%emt 0:00:00]} 31. Bxe6 {[%emt 0:00:08]} Bxe7 {[%emt 0:00:00]} 32. dxe7 {[%emt 0:00:06]} Kxe7 {[%emt 0:00:00]} 33. Bxg4 {[%emt 0:00:41]} Rg8 {[%emt 0:00:00]} 34. Bf3 {[%emt 0:00:48]} b6 {[%emt 0:00:00]} 35. Ne4 {[%emt 0:03:40]} Ng3 {[%emt 0:00:00]} 36. Ba3+ {[%emt 0:01:49]} Kf7 {[%emt 0:00:00]} 37. Nxg3 {[%emt 0:01:45]} Rxg3 {[%emt 0:00:00]} 38. Bd6 {[%emt 0:00:54]} 1-0

[Event "AUT-ch Open 2020"]
[Site "Graz"]
[Date "2020.02.19"]
[Round "7.11"]
[White "Janzelj, Tim"]
[Black "Giannoulakis, Lampros"]
[Result "1-0"]
[ECO "B51"]
[WhiteElo "2451"]
[BlackElo "2266"]
[Annotator "ChessBase"]
[PlyCount "83"]
[EventDate "2020.02.14"]
[EventType "swiss"]
[EventCountry "AUT"]
[SourceTitle "playchess.com"]
[Source "ChessBase"]
[SourceQuality "1"]
[TimeControl "40/5400+30:1800+30"]

1. e4 {[%emt 0:00:00]} c5 {[%emt 0:00:00]} 2. Nf3 {[%emt 0:00:00]} d6 {[%emt 0:00:00]} 3. Bb5+ {[%emt 0:00:00]} Nd7 {[%emt 0:00:33]} 4. c3 {[%emt 0:00:09]} Ngf6 {[%emt 0:00:09]} 5. Qe2 {[%emt 0:00:07]} a6 {[%emt 0:00:19]} 6. Ba4 {[%emt 0:00:08]} b5 {[%emt 0:00:06]} 7. Bc2 {[%emt 0:00:10]} e5 {[%emt 0:00:43]} 8. d4 {[%emt 0:01:11]} Be7 {[%emt 0:00:19]} 9. O-O {[%emt 0:02:24]} O-O {[%emt 0:00:48]} 10. Rd1 {[%emt 0:03:27]} Qc7 {[%emt 0:01:34]} 11. h3 {[%emt 0:05:27]} Re8 {[%emt 0:00:51]} 12. a4 {[%emt 0:03:08]} Rb8 {[%emt 0:05:15]} 13. dxe5 {[%emt 0:01:42]} dxe5 {[%emt 0:02:23]} 14. b3 {[%emt 0:18:59]} Nf8 {[%emt 0:02:53]} 15. axb5 {[%emt 0:04:16]} axb5 {[%emt 0:00:05]} 16. Na3 {[%emt 0:00:09]} b4 {[%emt 0:06:17]} 17. Nc4 {[%emt 0:10:28]} Ng6 {[%emt 0:04:02]} 18. cxb4 {[%emt 0:00:07]} cxb4 {[%emt 0:00:20]} 19. Be3 {[%emt 0:00:02]} Be6 {[%emt 0:07:04]} 20. Ra7 {[%emt 0:02:41]} Bxc4 {[%emt 0:01:45]} 21. bxc4 {[%emt 0:00:55]} Rb7 {[%emt 0:02:08]} 22. Rxb7 {[%emt 0:00:56]} Qxb7 {[%emt 0:00:08]} 23. c5 {[%emt 0:03:22]} b3 {[%emt 0:22:03]} 24. Rb1 {[%emt 0:00:16]} Bxc5 {[%emt 0:12:21]} 25. Rxb3 {[%emt 0:06:40]} Qa7 {[%emt 0:02:23]} 26. Bxc5 {[%emt 0:05:06]} Qxc5 {[%emt 0:00:06]} 27. g3 {[%emt 0:00:13]} Rc8 {[%emt 0:02:43]} 28. Bd3 {[%emt 0:00:40]} h6 {[%emt 0:01:43]} 29. Rb5 {[%emt 0:04:36]} Qc3 {[%emt 0:04:30]} 30. Kh2 {[%emt 0:02:22]} Nd7 {[%emt 0:04:30]} 31. Bb1 {[%emt 0:02:29]} Nc5 {[%emt 0:04:02]} 32. Ba2 {[%emt 0:03:36]} Nf8 {[%emt 0:02:47]} 33. Kg2 {[%emt 0:03:51]} Nfd7 {[%emt 0:04:16]} 34. Nh4 {[%emt 0:09:36]} Nf6 {[%emt 0:03:21]} 35. Nf5 {[%emt 0:01:14]} Rd8 {[%emt 0:01:15]} 36. Ne7+ {[%emt 0:01:20]} Kf8 {[%emt 0:00:13]} 37. Nd5 {[%emt 0:00:42]} Nxd5 {[%emt 0:00:57]} 38. Bxd5 {[%emt 0:00:02]} g6 {[%emt 0:01:08]} 39. Rb6 {[%emt 0:01:19]} Kg7 {[%emt 0:01:20]} 40. Rc6 {[%emt 0:00:14]} Qd4 {[%emt 0:01:46]} 41. Qf3 {[%emt 0:06:13]} f5 {[%emt 0:11:02]} 42. Rxg6+ {[%emt 0:00:27]} 1-0

[Event "AUT-ch Open 2020"]
[Site "Graz"]
[Date "2020.02.19"]
[Round "7.11"]
[White "Buonanno, Raffaele"]
[Black "Zadruzny, Nicolaj"]
[Result "1/2-1/2"]
[ECO "E04"]
[WhiteElo "2151"]
[BlackElo "2334"]
[Annotator "NA"]
[PlyCount "62"]
[EventDate "2020.02.14"]
[EventType "swiss"]
[EventCountry "AUT"]
[SourceTitle "playchess.com"]
[Source "ChessBase"]
[SourceQuality "1"]
[TimeControl "40/5400+30:1800+30"]

1. d4 {[%emt 0:00:00]} Nf6 {[%emt 0:00:00]} 2. c4 {[%emt 0:00:01]} e6 {[%emt 0:00:00]} 3. g3 {[%emt 0:00:11]} d5 {[%emt 0:00:00]} 4. Bg2 {[%emt 0:00:43]} dxc4 {[%emt 0:00:21]} 5. Nf3 {[%emt 0:00:11]} a6 {[%emt 0:00:18]} 6. a4 {[%emt 0:01:03]} Nc6 {[%emt 0:00:33]} 7. O-O {[%emt 0:00:30]} Rb8 {[%emt 0:00:50]} 8. Nc3 {[%emt 0:05:19]} Nd5 {[%emt 0:11:25]} 9. e4 {[%emt 0:08:41]} Nxc3 {[%emt 0:00:34]} 10. bxc3 {[%emt 0:00:03]} Na5 {[%emt 0:01:57]} 11. Ne5 {[%emt 0:03:02]} Nb3 {[%emt 0:14:34]} 12. Rb1 {[%emt 0:02:36]} Bd7 {[%emt 0:07:56]} 13. Qh5 {[%emt 0:08:27]} g6 {[%emt 0:00:07]} 14. Qf3 {[%emt 0:00:02]} f6 {[%emt 0:00:32]} 15. Nxd7 {[%emt 0:00:28]} Qxd7 {[%emt 0:06:30]} 16. Qxf6 {[%emt 0:02:34]} Bg7 {[%emt 0:00:09]} 17. Qf3 {[%emt 0:00:31]} Qf7 {[%emt 0:13:13]} 18. Qe2 {[%emt 0:01:26]} e5 {[%emt 0:01:15]} 19. d5 {[%emt 0:01:27]} b5 {[%emt 0:00:39]} 20. axb5 {[%emt 0:00:04]} axb5 {[%emt 0:00:06]} 21. Bh3 {[%emt 0:01:45]} Qe7 {[%emt 0:01:28]} 22. Be6 {[%emt 0:01:49]} Rb6 {[%emt 0:10:23]} 23. Rd1 {[%emt 0:12:25]} Nxc1 {[%emt 0:07:34]} 24. Rdxc1 {[%emt 0:00:42]} Bh6 {[%emt 0:03:25]} 25. Rf1 {[%emt 0:04:08]} Kf8 {[%emt 0:05:23]} 26. f4 {[%emt 0:00:49]} exf4 {[%emt 0:00:25]} 27. gxf4 {[%emt 0:01:04]} Kg7 {[%emt 0:00:42]} 28. f5 {[%emt 0:08:41]} Rf8 {[%emt 0:00:15]} 29. fxg6 {[%emt 0:01:31]} hxg6 {[%emt 0:06:12]} 30. Rxf8 {[%emt 0:00:30]} Kxf8 {[%emt 0:01:35]} 31. Rf1+ {[%emt 0:00:45]} Ke8 {[%emt 0:00:25]} 1/2-1/2

[Event "AUT-ch Open 2020"]
[Site "Graz"]
[Date "2020.02.19"]
[Round "7.12"]
[White "Konyves, Almos"]
[Black "Molnar, Bela"]
[Result "0-1"]
[ECO "B40"]
[WhiteElo "2031"]
[BlackElo "2312"]
[Annotator "NA"]
[PlyCount "90"]
[EventDate "2020.02.14"]
[EventType "swiss"]
[EventCountry "AUT"]
[SourceTitle "playchess.com"]
[Source "ChessBase"]
[SourceQuality "1"]
[TimeControl "40/5400+30:1800+30"]

1. e4 {[%emt 0:00:00]} c5 {[%emt 0:00:00]} 2. Nf3 {[%emt 0:00:00]} Nc6 {[%emt 0:00:17]} 3. Nc3 {[%emt 0:00:20]} e6 {[%emt 0:00:09]} 4. Be2 {[%emt 0:01:24]} a6 {[%emt 0:00:22]} 5. a4 {[%emt 0:00:25]} Nf6 {[%emt 0:00:29]} 6. O-O {[%emt 0:00:17]} Qc7 {[%emt 0:00:33]} 7. Re1 {[%emt 0:02:23]} d6 {[%emt 0:04:20]} 8. d3 {[%emt 0:01:47]} Rb8 {[%emt 0:00:30]} 9. Bf1 {[%emt 0:07:06]} b5 {[%emt 0:00:47]} 10. axb5 {[%emt 0:00:38]} axb5 {[%emt 0:00:09]} 11. h3 {[%emt 0:04:34]} Be7 {[%emt 0:00:23]} 12. Bf4 {[%emt 0:01:17]} b4 {[%emt 0:00:56]} 13. Nb1 {[%emt 0:03:15]} e5 {[%emt 0:01:40]} 14. Bh2 {[%emt 0:00:55]} O-O {[%emt 0:02:05]} 15. Nbd2 {[%emt 0:01:26]} h6 {[%emt 0:00:26]} 16. Nc4 {[%emt 0:00:58]} Be6 {[%emt 0:00:14]} 17. Nfd2 {[%emt 0:03:08]} Ra8 {[%emt 0:00:33]} 18. c3 {[%emt 0:06:13]} Nd7 {[%emt 0:05:02]} 19. Ne3 {[%emt 0:02:36]} bxc3 {[%emt 0:00:52]} 20. bxc3 {[%emt 0:00:06]} Bg5 {[%emt 0:00:14]} 21. Ndc4 {[%emt 0:08:18]} g6 {[%emt 0:01:52]} 22. g3 {[%emt 0:06:47]} h5 {[%emt 0:02:21]} 23. f4 {[%emt 0:01:12]} Bh6 {[%emt 0:02:29]} 24. f5 {[%emt 0:06:57]} Bxc4 {[%emt 0:00:52]} 25. Nxc4 {[%emt 0:01:05]} Nb6 {[%emt 0:01:37]} 26. Qb3 {[%emt 0:02:00]} Nxc4 {[%emt 0:02:07]} 27. Qxc4 {[%emt 0:00:16]} Na5 {[%emt 0:01:44]} 28. Qa2 {[%emt 0:06:26]} Kg7 {[%emt 0:01:55]} 29. c4 {[%emt 0:01:46]} Ra7 {[%emt 0:00:43]} 30. g4 {[%emt 0:02:12]} hxg4 {[%emt 0:00:16]} 31. hxg4 {[%emt 0:00:06]} Nc6 {[%emt 0:00:27]} 32. Qf2 {[%emt 0:01:59]} Bg5 {[%emt 0:00:18]} 33. Bg3 {[%emt 0:01:15]} Nd4 {[%emt 0:00:20]} 34. Bg2 {[%emt 0:01:35]} Rfa8 {[%emt 0:03:54]} 35. Rxa7 {[%emt 0:09:48]} Qxa7 {[%emt 1:06:34]} 36. fxg6 {[%emt 0:17:30]} f6 {[%emt 0:00:30]} 37. Bh4 {[%emt 0:00:30]} Bf4 {[%emt 0:00:30]} 38. Bg3 {[%emt 0:00:30]} Qa2 {[%emt 0:00:30]} 39. Bxf4 {[%emt 0:00:30]} Qxf2+ {[%emt 0:00:30]} 40. Kxf2 {[%emt 0:00:30]} exf4 {[%emt 0:00:00]} 41. Rb1 {[%emt 0:28:03]} Ra2+ {[%emt 0:00:00]} 42. Kg1 {[%emt 0:00:32]} f3 {[%emt 0:00:00]} 43. Bf1 {[%emt 0:00:08]} Kxg6 {[%emt 0:00:00]} 44. Rb6 {[%emt 0:00:36]} Kg5 {[%emt 0:00:00]} 45. Rxd6 {[%emt 0:00:37]} Kf4 {[%emt 0:00:00]} 0-1

[Event "AUT-ch Open 2020"]
[Site "Graz"]
[Date "2020.02.19"]
[Round "7.13"]
[White "Dragnev, Valentin"]
[Black "Drnovsek, Gal"]
[Result "1-0"]
[ECO "B91"]
[WhiteElo "2549"]
[BlackElo "2549"]
[Annotator "ChessBase"]
[PlyCount "73"]
[EventDate "2020.02.14"]
[EventType "swiss"]
[EventCountry "AUT"]
[SourceTitle "playchess.com"]
[Source "ChessBase"]
[SourceQuality "1"]
[TimeControl "40/5400+30:1800+30"]

1. e4 {[%emt 0:00:00]} c5 {[%emt 0:00:13]} 2. Nf3 {[%emt 0:00:00]} d6 {[%emt 0:00:04]} 3. d4 {[%emt 0:00:00]} cxd4 {[%emt 0:00:08]} 4. Nxd4 {[%emt 0:00:00]} Nf6 {[%emt 0:00:10]} 5. Nc3 {[%emt 0:00:01]} a6 {[%emt 0:00:06]} 6. g3 {[%emt 0:00:03]} e5 {[%emt 0:03:19]} 7. Nde2 {[%emt 0:00:19]} Be7 {[%emt 0:00:07]} 8. Bg2 {[%emt 0:00:06]} O-O {[%emt 0:00:39]} 9. O-O {[%emt 0:00:07]} Nbd7 {[%emt 0:02:55]} 10. a4 {[%emt 0:00:23]} b6 {[%emt 0:01:43]} 11. Nd5 {[%emt 0:00:07]} Bb7 {[%emt 0:06:41]} 12. Nec3 {[%emt 0:01:27]} Nxd5 {[%emt 0:03:15]} 13. Nxd5 {[%emt 0:00:10]} Nf6 {[%emt 0:01:39]} 14. Nxe7+ {[%emt 0:16:26]} Qxe7 {[%emt 0:00:05]} 15. Qd3 {[%emt 0:00:10]} Rfd8 {[%emt 0:10:10]} 16. Be3 {[%emt 0:05:01]} Nd7 {[%emt 0:07:48]} 17. b4 {[%emt 0:06:17]} d5 {[%emt 0:05:38]} 18. exd5 {[%emt 0:01:39]} Qxb4 {[%emt 0:00:07]} 19. Rfb1 {[%emt 0:00:12]} Qd6 {[%emt 0:00:50]} 20. c4 {[%emt 0:25:42]} a5 {[%emt 0:11:33]} 21. Bh3 {[%emt 0:00:41]} Nc5 {[%emt 0:01:28]} 22. Qa3 {[%emt 0:05:55]} Ba6 {[%emt 0:00:27]} 23. Bf1 {[%emt 0:00:28]} Rac8 {[%emt 0:06:47]} 24. Rb2 {[%emt 0:01:22]} Rc7 {[%emt 0:01:47]} 25. Rab1 {[%emt 0:01:21]} Rb8 {[%emt 0:00:06]} 26. f4 {[%emt 0:10:37]} f6 {[%emt 0:00:55]} 27. fxe5 {[%emt 0:00:20]} fxe5 {[%emt 0:00:08]} 28. Rf2 {[%emt 0:00:47]} Rf8 {[%emt 0:01:46]} 29. Rxf8+ {[%emt 0:04:10]} Kxf8 {[%emt 0:00:06]} 30. Qb2 {[%emt 0:00:23]} Rb7 {[%emt 0:02:32]} 31. Qf2+ {[%emt 0:02:11]} Kg8 {[%emt 0:01:08]} 32. Bh3 {[%emt 0:03:49]} Nxa4 {[%emt 0:13:02]} 33. Be6+ {[%emt 0:04:57]} Kh8 {[%emt 0:00:04]} 34. Bc8 {[%emt 0:02:15]} Ra7 {[%emt 0:01:41]} 35. Bxb6 {[%emt 0:00:28]} Ra8 {[%emt 0:01:27]} 36. Bxa6 {[%emt 0:00:11]} Rxa6 {[%emt 0:00:05]} 37. Bc7 {[%emt 0:00:25]} 1-0

[Event "AUT-ch Open 2020"]
[Site "Graz"]
[Date "2020.02.19"]
[Round "7.13"]
[White "Nisavic, Uros"]
[Black "Milikow, Yoav"]
[Result "0-1"]
[ECO "D85"]
[WhiteElo "2020"]
[BlackElo "2296"]
[Annotator "NA"]
[PlyCount "86"]
[EventDate "2020.02.14"]
[EventType "swiss"]
[EventCountry "AUT"]
[SourceTitle "playchess.com"]
[Source "ChessBase"]
[SourceQuality "1"]
[TimeControl "40/5400+30:1800+30"]

1. d4 {[%emt 0:00:00]} Nf6 {[%emt 0:00:00]} 2. c4 {[%emt 0:00:00]} g6 {[%emt 0:00:06]} 3. Nc3 {[%emt 0:00:00]} d5 {[%emt 0:00:08]} 4. cxd5 {[%emt 0:00:00]} Nxd5 {[%emt 0:00:02]} 5. e4 {[%emt 0:00:08]} Nxc3 {[%emt 0:00:04]} 6. bxc3 {[%emt 0:00:05]} Bg7 {[%emt 0:00:11]} 7. Nf3 {[%emt 0:00:07]} c5 {[%emt 0:00:35]} 8. Be3 {[%emt 0:00:08]} Qa5 {[%emt 0:00:25]} 9. Qd2 {[%emt 0:00:07]} O-O {[%emt 0:00:38]} 10. Rc1 {[%emt 0:00:09]} cxd4 {[%emt 0:01:55]} 11. cxd4 {[%emt 0:00:10]} Qxd2+ {[%emt 0:00:22]} 12. Bxd2 {[%emt 0:01:59]} e6 {[%emt 0:04:19]} 13. Be3 {[%emt 0:05:34]} Nc6 {[%emt 0:07:11]} 14. Be2 {[%emt 0:14:06]} Rd8 {[%emt 0:04:33]} 15. Rc4 {[%emt 0:15:12]} f5 {[%emt 0:05:58]} 16. e5 {[%emt 0:03:52]} h6 {[%emt 0:02:45]} 17. h4 {[%emt 0:03:56]} Ne7 {[%emt 0:09:46]} 18. O-O {[%emt 0:05:16]} Nd5 {[%emt 0:00:32]} 19. Bd2 {[%emt 0:00:23]} Bd7 {[%emt 0:02:50]} 20. Rcc1 {[%emt 0:01:54]} Bf8 {[%emt 0:02:11]} 21. Bc4 {[%emt 0:05:19]} Bc6 {[%emt 0:03:21]} 22. Rb1 {[%emt 0:04:13]} Rac8 {[%emt 0:02:26]} 23. Rfc1 {[%emt 0:08:11]} Kf7 {[%emt 0:03:22]} 24. Bb3 {[%emt 0:11:50]} Ne7 {[%emt 0:06:58]} 25. Be3 {[%emt 0:01:59]} b6 {[%emt 0:02:12]} 26. Rd1 {[%emt 0:01:53]} Rc7 {[%emt 0:03:04]} 27. Rbc1 {[%emt 0:00:37]} Rdc8 {[%emt 0:01:45]} 28. Ne1 {[%emt 0:00:34]} Nd5 {[%emt 0:01:55]} 29. Bd2 {[%emt 0:02:12]} a5 {[%emt 0:06:22]} 30. Rb1 {[%emt 0:06:17]} Ne7 {[%emt 0:03:11]} 31. Nd3 {[%emt 0:06:42]} a4 {[%emt 0:03:29]} 32. Bc4 {[%emt 0:01:01]} Nd5 {[%emt 0:01:41]} 33. Bxd5 {[%emt 0:01:30]} Bxd5 {[%emt 0:00:07]} 34. Nb4 {[%emt 0:00:25]} Be4 {[%emt 0:01:05]} 35. Rb2 {[%emt 0:00:39]} Rc4 {[%emt 0:00:18]} 36. d5 {[%emt 0:00:45]} Rd4 {[%emt 0:00:55]} 37. d6 {[%emt 0:00:35]} Bg7 {[%emt 0:01:01]} 38. f4 {[%emt 0:00:25]} g5 {[%emt 0:01:01]} 39. Rc1 {[%emt 0:00:44]} Rxc1+ {[%emt 0:00:17]} 40. Bxc1 {[%emt 0:00:15]} Rd1+ {[%emt 0:00:14]} 41. Kh2 {[%emt 0:30:21]} Rxc1 {[%emt 0:30:19]} 42. Rd2 {[%emt 0:00:49]} Rc8 {[%emt 0:01:04]} 43. g3 {[%emt 0:00:00]} Rc1 {[%emt 0:00:00]} 0-1

[Event "AUT-ch Open 2020"]
[Site "Graz"]
[Date "2020.02.19"]
[Round "7.14"]
[White "Matt, Fabian"]
[Black "Froewis, Annika"]
[Result "1-0"]
[ECO "D45"]
[WhiteElo "2290"]
[BlackElo "2121"]
[Annotator "NA"]
[PlyCount "55"]
[EventDate "2020.02.14"]
[EventType "swiss"]
[EventCountry "AUT"]
[SourceTitle "playchess.com"]
[Source "ChessBase"]
[SourceQuality "1"]
[TimeControl "40/5400+30:1800+30"]

1. c4 {[%emt 0:00:00]} e6 {[%emt 0:00:25]} 2. d4 {[%emt 0:00:00]} d5 {[%emt 0:00:06]} 3. Nc3 {[%emt 0:00:51]} Nf6 {[%emt 0:00:15]} 4. Nf3 {[%emt 0:00:39]} c6 {[%emt 0:04:21]} 5. e3 {[%emt 0:00:53]} Nbd7 {[%emt 0:00:27]} 6. Qc2 {[%emt 0:00:26]} b6 {[%emt 0:00:28]} 7. cxd5 {[%emt 0:02:55]} exd5 {[%emt 0:02:41]} 8. Bd3 {[%emt 0:00:15]} Bb7 {[%emt 0:04:27]} 9. Ne5 {[%emt 0:02:53]} Nxe5 {[%emt 0:08:34]} 10. dxe5 {[%emt 0:00:07]} Nd7 {[%emt 0:00:10]} 11. f4 {[%emt 0:00:32]} Nc5 {[%emt 0:00:54]} 12. Be2 {[%emt 0:04:26]} d4 {[%emt 0:05:08]} 13. exd4 {[%emt 0:01:24]} Qxd4 {[%emt 0:00:07]} 14. Bd2 {[%emt 0:11:13]} O-O-O {[%emt 0:05:20]} 15. O-O-O {[%emt 0:04:49]} Nd3+ {[%emt 0:07:59]} 16. Kb1 {[%emt 0:00:02]} Kb8 {[%emt 0:14:56]} 17. Bc1 {[%emt 0:02:14]} Ba6 {[%emt 0:02:07]} 18. Rhf1 {[%emt 0:01:59]} c5 {[%emt 0:01:06]} 19. Rf3 {[%emt 0:01:00]} c4 {[%emt 0:01:59]} 20. Qa4 {[%emt 0:00:27]} Kb7 {[%emt 0:08:17]} 21. Rfxd3 {[%emt 0:02:21]} cxd3 {[%emt 0:00:59]} 22. Bf3+ {[%emt 0:00:06]} Kb8 {[%emt 0:00:24]} 23. Qxa6 {[%emt 0:00:08]} Qd7 {[%emt 0:02:57]} 24. Nb5 {[%emt 0:04:08]} Bb4 {[%emt 0:03:31]} 25. Be3 {[%emt 0:02:49]} Bc5 {[%emt 0:02:39]} 26. Bxc5 {[%emt 0:00:21]} bxc5 {[%emt 0:00:06]} 27. Bc6 {[%emt 0:00:18]} Qe7 {[%emt 0:00:12]} 28. Nd6 {[%emt 0:00:10]} 1-0

[Event "AUT-ch Open 2020"]
[Site "Graz"]
[Date "2020.02.19"]
[Round "7.15"]
[White "Lodici, Lorenzo"]
[Black "Banzea, Alexandru-Bogdan"]
[Result "1-0"]
[ECO "A45"]
[WhiteElo "2492"]
[BlackElo "2368"]
[Annotator "ChessBase"]
[PlyCount "65"]
[EventDate "2020.02.14"]
[EventType "swiss"]
[EventCountry "AUT"]
[SourceTitle "playchess.com"]
[Source "ChessBase"]
[SourceQuality "1"]
[TimeControl "40/5400+30:1800+30"]

1. d4 {[%emt 0:00:00]} Nf6 {[%emt 0:00:00]} 2. Bf4 {[%emt 0:00:00]} g6 {[%emt 0:01:37]} 3. Nc3 {[%emt 0:00:00]} d5 {[%emt 0:00:08]} 4. h4 {[%emt 0:00:00]} Bg7 {[%emt 0:03:23]} 5. e3 {[%emt 0:00:00]} c6 {[%emt 0:01:20]} 6. Be2 {[%emt 0:09:55]} h5 {[%emt 0:00:12]} 7. Nf3 {[%emt 0:00:03]} Bf5 {[%emt 0:09:23]} 8. Qd2 {[%emt 0:09:56]} a5 {[%emt 0:01:42]} 9. Ng5 {[%emt 0:00:44]} b5 {[%emt 0:22:30]} 10. f3 {[%emt 0:01:32]} Na6 {[%emt 0:09:13]} 11. e4 {[%emt 0:05:53]} Bc8 {[%emt 0:00:43]} 12. e5 {[%emt 0:07:57]} Nh7 {[%emt 0:03:04]} 13. Nd1 {[%emt 0:01:41]} Nxg5 {[%emt 0:02:03]} 14. hxg5 {[%emt 0:00:38]} Nc7 {[%emt 0:00:44]} 15. Nf2 {[%emt 0:03:31]} Ne6 {[%emt 0:03:19]} 16. Be3 {[%emt 0:03:12]} Qb6 {[%emt 0:00:46]} 17. c3 {[%emt 0:04:38]} Ba6 {[%emt 0:09:00]} 18. Nd3 {[%emt 0:05:25]} b4 {[%emt 0:09:58]} 19. Kf2 {[%emt 0:04:09]} Rb8 {[%emt 0:03:39]} 20. f4 {[%emt 0:09:28]} Kd7 {[%emt 0:02:24]} 21. g4 {[%emt 0:05:08]} hxg4 {[%emt 0:00:12]} 22. Bxg4 {[%emt 0:00:13]} Bxd3 {[%emt 0:01:06]} 23. Qxd3 {[%emt 0:00:01]} bxc3 {[%emt 0:01:13]} 24. bxc3 {[%emt 0:00:02]} Qb5 {[%emt 0:01:05]} 25. Qxb5 {[%emt 0:01:37]} cxb5 {[%emt 0:00:01]} 26. Rxh8 {[%emt 0:02:49]} Rxh8 {[%emt 0:02:18]} 27. a4 {[%emt 0:00:15]} Kc6 {[%emt 0:03:59]} 28. Bxe6 {[%emt 0:03:58]} fxe6 {[%emt 0:00:05]} 29. axb5+ {[%emt 0:00:13]} Kxb5 {[%emt 0:00:09]} 30. Ke2 {[%emt 0:00:00]} Kc4 {[%emt 0:02:03]} 31. Rxa5 {[%emt 0:00:56]} Rh2+ {[%emt 0:00:51]} 32. Bf2 {[%emt 0:00:13]} Kxc3 {[%emt 0:01:06]} 33. Rc5+ {[%emt 0:00:05]} 1-0

[Event "AUT-ch Open 2020"]
[Site "Graz"]
[Date "2020.02.19"]
[Round "7.15"]
[White "Murray, David"]
[Black "Welling, Gerard"]
[Result "1/2-1/2"]
[ECO "B06"]
[WhiteElo "2145"]
[BlackElo "2286"]
[Annotator "NA"]
[PlyCount "26"]
[EventDate "2020.02.14"]
[EventType "swiss"]
[EventCountry "AUT"]
[SourceTitle "playchess.com"]
[Source "ChessBase"]
[SourceQuality "1"]
[TimeControl "40/5400+30:1800+30"]

1. e4 {[%emt 0:00:00]} g6 {[%emt 0:00:01]} 2. d4 {[%emt 0:00:00]} Bg7 {[%emt 0:00:18]} 3. c3 {[%emt 0:00:01]} d6 {[%emt 0:00:42]} 4. Bd3 {[%emt 0:00:48]} e5 {[%emt 0:02:45]} 5. dxe5 {[%emt 0:02:32]} dxe5 {[%emt 0:00:07]} 6. Nf3 {[%emt 0:01:41]} Nd7 {[%emt 0:01:24]} 7. O-O {[%emt 0:02:00]} Ngf6 {[%emt 0:00:21]} 8. Qe2 {[%emt 0:02:56]} O-O {[%emt 0:00:29]} 9. Rd1 {[%emt 0:02:54]} Nh5 {[%emt 0:05:28]} 10. Bg5 {[%emt 0:04:39]} Bf6 {[%emt 0:00:48]} 11. Bh6 {[%emt 0:02:42]} Bg7 {[%emt 0:02:51]} 12. Bg5 {[%emt 0:04:23]} Bf6 {[%emt 0:12:42]} 13. Bh6 {[%emt 0:01:17]} Bg7 {[%emt 0:03:15]} 1/2-1/2